[Event "RUS-ch Blitz Women 2018"]
[Site "Sochi"]
[Date "2018.10.07"]
[Round "19"]
[White "Bulatova, Kamaliya"]
[Black "Vinokur, Yuliya"]
[Result "1-0"]
[ECO "D00"]
[WhiteElo "1926"]
[BlackElo "2170"]
[Annotator "NA"]
[PlyCount "54"]
[EventDate "2018.10.07"]
[EventType "swiss"]
[EventCountry "RUS"]
[SourceTitle "playchess.com"]
[Source "ChessBase"]
[SourceQuality "1"]
[TimeControl "180+2"]

1. d4 {[%emt 0:00:00]} d5 {[%emt 0:00:00]} 2. Bf4 {[%emt 0:00:00]} e6 {[%emt 0:00:03]} 3. e3 {[%emt 0:00:01]} c5 {[%emt 0:00:02]} 4. c3 {[%emt 0:00:01]} Nc6 {[%emt 0:00:04]} 5. Nd2 {[%emt 0:00:01]} Bd6 {[%emt 0:00:17]} 6. Bxd6 {[%emt 0:00:08]} Qxd6 {[%emt 0:00:02]} 7. f4 {[%emt 0:00:02]} cxd4 {[%emt 0:00:06]} 8. cxd4 {[%emt 0:00:01]} Qb4 {[%emt 0:00:12]} 9. Qc2 {[%emt 0:00:32]} Bd7 {[%emt 0:00:06]} 10. a3 {[%emt 0:00:01]} Qa5 {[%emt 0:00:01]} 11. Ngf3 {[%emt 0:00:09]} Rc8 {[%emt 0:00:02]} 12. Qd1 {[%emt 0:00:01]} Nf6 {[%emt 0:00:08]} 13. Bd3 {[%emt 0:00:01]} O-O {[%emt 0:00:15]} 14. O-O {[%emt 0:00:02]} b5 {[%emt 0:00:03]} 15. Ne5 {[%emt 0:00:05]} b4 {[%emt 0:00:11]} 16. Nb3 {[%emt 0:00:14]} Qb6 {[%emt 0:00:01]} 17. Nc5 {[%emt 0:00:05]} Rfd8 {[%emt 0:00:14]} 18. Qe2 {[%emt 0:00:32]} Ne7 {[%emt 0:00:14]} 19. Ncxd7 {[%emt 0:00:11]} Nxd7 {[%emt 0:00:01]} 20. Bxh7+ {[%emt 0:00:05]} Kf8 {[%emt 0:00:44]} 21. Bd3 {[%emt 0:00:10]} Nxe5 {[%emt 0:00:17]} 22. fxe5 {[%emt 0:00:02]} Ng8 {[%emt 0:00:01]} 23. axb4 {[%emt 0:00:12]} Rd7 {[%emt 0:00:01]} 24. b5 {[%emt 0:00:05]} Rcc7 {[%emt 0:00:09]} 25. Ra6 {[%emt 0:00:02]} Qb8 {[%emt 0:00:01]} 26. Rxe6 {[%emt 0:00:03]} Re7 {[%emt 0:00:05]} 27. Rxe7 {[%emt 0:00:05]} Rxe7 {[%emt 0:00:04]} 1-0

[Event "RUS-ch Blitz Women 2018"]
[Site "Sochi"]
[Date "2018.10.07"]
[Round "20"]
[White "Kashlinskaya, Alina"]
[Black "Maltsevskaya, Aleksandra"]
[Result "0-1"]
[ECO "A50"]
[WhiteElo "2447"]
[BlackElo "2290"]
[Annotator "NA"]
[PlyCount "80"]
[EventDate "2018.10.07"]
[EventType "swiss"]
[EventCountry "RUS"]
[SourceTitle "playchess.com"]
[Source "ChessBase"]
[SourceQuality "1"]
[TimeControl "180+2"]

1. d4 {[%emt 0:00:00]} Nf6 {[%emt 0:00:00]} 2. c4 {[%emt 0:00:00]} b6 3. f3 Nc6 {[%emt 0:00:05]} 4. Nc3 {[%emt 0:00:01]} e5 {[%emt 0:00:07]} 5. d5 {[%emt 0:00:01]} Ne7 {[%emt 0:00:01]} 6. e4 {[%emt 0:00:01]} Ng6 {[%emt 0:00:04]} 7. Be3 {[%emt 0:00:01]} Bc5 {[%emt 0:00:05]} 8. Qd2 {[%emt 0:00:01]} d6 {[%emt 0:00:02]} 9. Na4 {[%emt 0:00:23]} Bxe3 10. Qxe3 {[%emt 0:00:01]} a6 {[%emt 0:00:27]} 11. Nc3 {[%emt 0:00:02]} O-O {[%emt 0:00:04]} 12. g3 {[%emt 0:00:18]} Ne8 {[%emt 0:00:05]} 13. Bd3 {[%emt 0:00:01]} f5 {[%emt 0:00:03]} 14. exf5 {[%emt 0:00:05]} Bxf5 {[%emt 0:00:02]} 15. Nge2 {[%emt 0:00:04]} Bxd3 {[%emt 0:00:16]} 16. Qxd3 {[%emt 0:00:00]} Nf6 {[%emt 0:00:11]} 17. Ne4 {[%emt 0:00:14]} Nxe4 {[%emt 0:00:13]} 18. Qxe4 {[%emt 0:00:01]} b5 {[%emt 0:00:05]} 19. h4 {[%emt 0:00:07]} bxc4 {[%emt 0:00:06]} 20. h5 $17 {[%emt 0:00:04]} Ne7 {[%emt 0:00:01]} 21. f4 {[%emt 0:00:15]} Nf5 {[%emt 0:00:18]} 22. O-O-O {[%emt 0:00:06]} exf4 {[%emt 0:00:12]} 23. Nxf4 {[%emt 0:00:10]} Qf6 {[%emt 0:00:11]} 24. Qe6+ {[%emt 0:00:36]} Qxe6 {[%emt 0:00:09]} 25. Nxe6 {[%emt 0:00:01]} Rf7 {[%emt 0:00:01]} 26. Rhf1 {[%emt 0:00:07]} Nxg3 {[%emt 0:00:05]} 27. Rxf7 Kxf7 {[%emt 0:00:01]} 28. Kc2 {[%emt 0:00:09]} Nxh5 {[%emt 0:00:04]} 29. Rd4 {[%emt 0:00:02]} Nf6 {[%emt 0:00:02]} 30. Nxc7 {[%emt 0:00:02]} Rc8 {[%emt 0:00:02]} 31. Nxa6 {[%emt 0:00:07]} h5 {[%emt 0:00:02]} 32. Nb4 {[%emt 0:00:05]} g5 {[%emt 0:00:01]} 33. a4 {[%emt 0:00:04]} h4 {[%emt 0:00:02]} 34. a5 {[%emt 0:00:01]} h3 35. a6 g4 {[%emt 0:00:11]} 36. a7 {[%emt 0:00:02]} g3 {[%emt 0:00:03]} 37. Nc6 {[%emt 0:00:01]} Ra8 {[%emt 0:00:01]} 38. Rxc4 {[%emt 0:00:19]} g2 {[%emt 0:00:03]} 39. Rb4 {[%emt 0:00:01]} g1=Q {[%emt 0:00:03]} 40. Rb8 {[%emt 0:00:01]} Rxa7 {[%emt 0:00:02]} 0-1

[Event "RUS-ch Blitz Women 2018"]
[Site "Sochi"]
[Date "2018.10.07"]
[Round "20"]
[White "Bivol, Alina"]
[Black "Voit, Daria"]
[Result "1/2-1/2"]
[ECO "A30"]
[WhiteElo "2403"]
[BlackElo "2352"]
[Annotator "NA"]
[PlyCount "53"]
[EventDate "2018.10.07"]
[EventType "swiss"]
[EventCountry "RUS"]
[SourceTitle "playchess.com"]
[Source "ChessBase"]
[SourceQuality "1"]
[TimeControl "180+2"]

1. Nf3 {[%emt 0:00:00]} c5 {[%emt 0:00:00]} 2. g3 {[%emt 0:00:00]} b6 {[%emt 0:00:02]} 3. Bg2 {[%emt 0:00:02]} Bb7 {[%emt 0:00:00]} 4. c4 {[%emt 0:00:01]} Nf6 {[%emt 0:00:03]} 5. Nc3 {[%emt 0:00:01]} e6 {[%emt 0:00:01]} 6. O-O {[%emt 0:00:02]} Be7 {[%emt 0:00:04]} 7. e3 {[%emt 0:00:01]} O-O {[%emt 0:00:07]} 8. d4 {[%emt 0:00:02]} cxd4 {[%emt 0:00:01]} 9. exd4 {[%emt 0:00:01]} d5 {[%emt 0:00:01]} 10. Ne5 {[%emt 0:00:04]} Bb4 {[%emt 0:00:15]} 11. Bg5 {[%emt 0:00:07]} Bxc3 {[%emt 0:00:06]} 12. bxc3 {[%emt 0:00:02]} h6 {[%emt 0:00:01]} 13. Bxf6 {[%emt 0:00:11]} Qxf6 {[%emt 0:00:04]} 14. Qa4 {[%emt 0:00:11]} Rd8 {[%emt 0:00:06]} 15. Rab1 {[%emt 0:00:03]} Qe7 {[%emt 0:00:23]} 16. c5 {[%emt 0:00:53]} bxc5 {[%emt 0:00:11]} 17. dxc5 {[%emt 0:00:19]} Qc7 $16 {[%emt 0:00:01]} 18. Rfe1 {[%emt 0:00:02]} Bc6 {[%emt 0:00:35]} 19. Nxc6 {[%emt 0:00:18]} Qxc6 {[%emt 0:00:01]} 20. Qxc6 {[%emt 0:00:03]} Nxc6 {[%emt 0:00:01]} 21. c4 {[%emt 0:00:01]} Rac8 {[%emt 0:00:01]} 22. cxd5 {[%emt 0:00:02]} exd5 {[%emt 0:00:01]} 23. Rb7 {[%emt 0:00:13]} d4 {[%emt 0:00:03]} 24. Bxc6 {[%emt 0:00:12]} Rxc6 {[%emt 0:00:02]} 25. Ree7 {[%emt 0:00:06]} d3 {[%emt 0:00:37]} 26. Rxf7 {[%emt 0:00:11]} d2 {[%emt 0:00:08]} 27. Rxg7+ {[%emt 0:00:01]} 1/2-1/2

[Event "RUS-ch Blitz Women 2018"]
[Site "Sochi"]
[Date "2018.10.07"]
[Round "20"]
[White "Ambartsumova, Karina"]
[Black "Bodnaruk, Anastasia"]
[Result "0-1"]
[ECO "B90"]
[WhiteElo "2379"]
[BlackElo "2423"]
[Annotator "NA"]
[PlyCount "88"]
[EventDate "2018.10.07"]
[EventType "swiss"]
[EventCountry "RUS"]
[SourceTitle "playchess.com"]
[Source "ChessBase"]
[SourceQuality "1"]
[TimeControl "180+2"]

1. e4 {[%emt 0:00:02]} c5 {[%emt 0:00:00]} 2. Nf3 {[%emt 0:00:02]} d6 {[%emt 0:00:00]} 3. d4 {[%emt 0:00:01]} cxd4 {[%emt 0:00:01]} 4. Nxd4 {[%emt 0:00:00]} Nf6 {[%emt 0:00:01]} 5. Nc3 {[%emt 0:00:01]} a6 {[%emt 0:00:00]} 6. Be3 {[%emt 0:00:04]} e5 {[%emt 0:00:02]} 7. Nf3 {[%emt 0:00:05]} Qc7 {[%emt 0:00:01]} 8. a4 {[%emt 0:00:01]} Be7 {[%emt 0:00:05]} 9. a5 {[%emt 0:00:04]} Be6 {[%emt 0:00:15]} 10. Be2 {[%emt 0:00:05]} Nbd7 {[%emt 0:00:04]} 11. O-O {[%emt 0:00:04]} O-O {[%emt 0:00:01]} 12. Nd5 {[%emt 0:00:05]} Bxd5 {[%emt 0:00:11]} 13. exd5 {[%emt 0:00:01]} b5 {[%emt 0:00:19]} 14. axb6 {[%emt 0:00:24]} Nxb6 {[%emt 0:00:01]} 15. Bxb6 {[%emt 0:00:54]} Qxb6 16. b3 {[%emt 0:00:01]} a5 {[%emt 0:00:11]} 17. Bc4 {[%emt 0:00:10]} Ne4 {[%emt 0:00:04]} 18. Qe2 {[%emt 0:00:09]} Nc5 {[%emt 0:00:15]} 19. Nd2 {[%emt 0:00:01]} f5 {[%emt 0:00:05]} 20. Kh1 {[%emt 0:00:13]} Bf6 {[%emt 0:00:02]} 21. Ra2 {[%emt 0:00:07]} e4 {[%emt 0:00:06]} 22. Bb5 {[%emt 0:00:04]} Ra7 {[%emt 0:00:09]} 23. Bc6 {[%emt 0:00:04]} Qc7 {[%emt 0:00:16]} 24. Nc4 {[%emt 0:00:01]} f4 {[%emt 0:00:14]} 25. Nd2 {[%emt 0:00:21]} Qe7 {[%emt 0:00:09]} 26. Nc4 {[%emt 0:00:09]} Bc3 {[%emt 0:00:04]} 27. f3 {[%emt 0:00:06]} e3 {[%emt 0:00:09]} 28. g3 {[%emt 0:00:02]} Bd4 {[%emt 0:00:11]} 29. Kg2 {[%emt 0:00:04]} Rf6 {[%emt 0:00:09]} 30. Rxa5 {[%emt 0:00:10]} Rxa5 {[%emt 0:00:03]} 31. Nxa5 {[%emt 0:00:01]} fxg3 {[%emt 0:00:11]} 32. hxg3 {[%emt 0:00:06]} Rg6 {[%emt 0:00:10]} 33. b4 {[%emt 0:00:04]} Be5 {[%emt 0:00:17]} 34. f4 {[%emt 0:00:07]} Ne4 {[%emt 0:00:00]} 35. Rf3 {[%emt 0:00:04]} Bxf4 {[%emt 0:00:05]} 36. Rxf4 {[%emt 0:00:05]} Nxg3 {[%emt 0:00:03]} 37. Qf3 {[%emt 0:00:06]} e2 {[%emt 0:00:03]} 38. Bd7 {[%emt 0:00:03]} e1=Q {[%emt 0:00:07]} 39. Be6+ {[%emt 0:00:01]} Rxe6 {[%emt 0:00:01]} 40. dxe6 {[%emt 0:00:01]} Qe2+ {[%emt 0:00:04]} 41. Kxg3 {[%emt 0:00:04]} Qg5+ {[%emt 0:00:01]} 42. Rg4 {[%emt 0:00:02]} Qge5+ {[%emt 0:00:02]} 43. Qf4 {[%emt 0:00:04]} Q2e3+ {[%emt 0:00:01]} 44. Kg2 {[%emt 0:00:01]} Q3xf4 {[%emt 0:00:00]} 0-1

[Event "RUS-ch Blitz Women 2018"]
[Site "Sochi"]
[Date "2018.10.07"]
[Round "20"]
[White "Gritsayeva, Oksana"]
[Black "Miroshnik, Ekaterina"]
[Result "1-0"]
[ECO "C41"]
[WhiteElo "2378"]
[BlackElo "2016"]
[Annotator "NA"]
[PlyCount "207"]
[EventDate "2018.10.07"]
[EventType "swiss"]
[EventCountry "RUS"]
[SourceTitle "playchess.com"]
[Source "ChessBase"]
[SourceQuality "1"]
[TimeControl "180+2"]

1. e4 {[%emt 0:00:00]} d6 {[%emt 0:00:00]} 2. d4 {[%emt 0:00:00]} Nd7 {[%emt 0:00:01]} 3. Nc3 {[%emt 0:00:01]} e5 {[%emt 0:00:01]} 4. Nf3 {[%emt 0:00:02]} Ngf6 {[%emt 0:00:02]} 5. Bc4 {[%emt 0:00:03]} Be7 {[%emt 0:00:02]} 6. O-O {[%emt 0:00:02]} O-O {[%emt 0:00:02]} 7. a4 {[%emt 0:00:04]} c6 {[%emt 0:00:02]} 8. Ba2 {[%emt 0:00:05]} Qc7 {[%emt 0:00:02]} 9. Re1 {[%emt 0:00:02]} a6 10. a5 {[%emt 0:00:10]} h6 {[%emt 0:00:19]} 11. Nh4 {[%emt 0:00:12]} Re8 {[%emt 0:00:04]} 12. Nf5 {[%emt 0:00:10]} Bf8 {[%emt 0:00:03]} 13. Be3 {[%emt 0:00:11]} exd4 {[%emt 0:00:24]} 14. Bxd4 {[%emt 0:00:04]} c5 {[%emt 0:00:11]} 15. Bxf6 {[%emt 0:00:05]} Nxf6 {[%emt 0:00:01]} 16. Qf3 {[%emt 0:00:03]} Be6 {[%emt 0:00:14]} 17. Nxh6+ {[%emt 0:00:21]} Kh8 {[%emt 0:00:02]} 18. Nf5 {[%emt 0:00:08]} Bxa2 {[%emt 0:00:03]} 19. Rxa2 {[%emt 0:00:05]} d5 {[%emt 0:00:20]} 20. Ng3 {[%emt 0:00:34]} Rad8 {[%emt 0:00:35]} 21. Raa1 {[%emt 0:00:02]} d4 {[%emt 0:00:04]} 22. Nce2 {[%emt 0:00:13]} c4 {[%emt 0:00:09]} 23. Nf4 {[%emt 0:00:07]} Qe5 {[%emt 0:00:18]} 24. Ra4 {[%emt 0:00:13]} Qb5 {[%emt 0:00:08]} 25. Ra2 {[%emt 0:00:03]} d3 {[%emt 0:00:07]} 26. cxd3 {[%emt 0:00:06]} cxd3 {[%emt 0:00:01]} 27. Rd1 {[%emt 0:00:06]} Qb3 {[%emt 0:00:07]} 28. Raa1 {[%emt 0:00:01]} Qxb2 {[%emt 0:00:06]} 29. Nxd3 {[%emt 0:00:03]} Qd4 {[%emt 0:00:07]} 30. e5 {[%emt 0:00:04]} Nd5 {[%emt 0:00:05]} 31. Qe4 {[%emt 0:00:07]} Qxe4 {[%emt 0:00:04]} 32. Nxe4 {[%emt 0:00:01]} Nb4 {[%emt 0:00:04]} 33. Nxb4 {[%emt 0:00:10]} Bxb4 {[%emt 0:00:01]} 34. Rdb1 {[%emt 0:00:05]} Rd4 {[%emt 0:00:03]} 35. Nd6 {[%emt 0:00:07]} Bxd6 {[%emt 0:00:09]} 36. exd6 {[%emt 0:00:01]} Rxd6 {[%emt 0:00:01]} 37. Rxb7 {[%emt 0:00:02]} Kg8 {[%emt 0:00:04]} 38. Rb6 {[%emt 0:00:05]} Ree6 {[%emt 0:00:05]} 39. Rab1 {[%emt 0:00:04]} Kh7 {[%emt 0:00:02]} 40. g3 {[%emt 0:00:02]} f6 {[%emt 0:00:03]} 41. Rxd6 {[%emt 0:00:02]} Rxd6 {[%emt 0:00:01]} 42. Rb6 {[%emt 0:00:01]} Rd1+ {[%emt 0:00:02]} 43. Kg2 {[%emt 0:00:01]} Ra1 {[%emt 0:00:01]} 44. Rxa6 {[%emt 0:00:01]} Kg6 {[%emt 0:00:00]} 45. Ra7 {[%emt 0:00:02]} Ra2 {[%emt 0:00:01]} 46. Kf3 {[%emt 0:00:02]} Ra3+ {[%emt 0:00:01]} 47. Kg2 {[%emt 0:00:02]} Ra2 {[%emt 0:00:01]} 48. h3 {[%emt 0:00:02]} Ra3 {[%emt 0:00:01]} 49. h4 {[%emt 0:00:01]} Ra2 {[%emt 0:00:02]} 50. Kf3 {[%emt 0:00:02]} Ra3+ {[%emt 0:00:01]} 51. Kg4 {[%emt 0:00:02]} Ra4+ {[%emt 0:00:00]} 52. f4 {[%emt 0:00:02]} Ra3 {[%emt 0:00:03]} 53. h5+ {[%emt 0:00:03]} Kh6 {[%emt 0:00:02]} 54. a6 {[%emt 0:00:02]} f5+ {[%emt 0:00:06]} 55. Kh4 {[%emt 0:00:06]} Ra1 {[%emt 0:00:02]} 56. Kh3 {[%emt 0:00:02]} Rh1+ {[%emt 0:00:04]} 57. Kg2 {[%emt 0:00:00]} Ra1 {[%emt 0:00:02]} 58. Ra8 {[%emt 0:00:07]} Kxh5 {[%emt 0:00:06]} 59. Rh8+ {[%emt 0:00:06]} Kg6 {[%emt 0:00:00]} 60. Ra8 {[%emt 0:00:01]} Ra2+ {[%emt 0:00:03]} 61. Kf3 {[%emt 0:00:02]} Ra4 {[%emt 0:00:00]} 62. a7 {[%emt 0:00:02]} Ra3+ {[%emt 0:00:03]} 63. Ke2 {[%emt 0:00:01]} Ra2+ {[%emt 0:00:02]} 64. Kd3 {[%emt 0:00:01]} Ra3+ {[%emt 0:00:02]} 65. Kc4 {[%emt 0:00:01]} Ra2 {[%emt 0:00:01]} 66. Kb5 {[%emt 0:00:01]} Ra1 {[%emt 0:00:00]} 67. Kb6 {[%emt 0:00:02]} Rb1+ {[%emt 0:00:02]} 68. Kc7 {[%emt 0:00:02]} Rc1+ {[%emt 0:00:01]} 69. Kd7 {[%emt 0:00:03]} Rd1+ {[%emt 0:00:01]} 70. Ke6 {[%emt 0:00:02]} Re1+ {[%emt 0:00:01]} 71. Kd7 {[%emt 0:00:01]} Rd1+ {[%emt 0:00:01]} 72. Ke7 {[%emt 0:00:01]} Re1+ {[%emt 0:00:01]} 73. Kf8 {[%emt 0:00:01]} Ra1 {[%emt 0:00:05]} 74. Kg8 {[%emt 0:00:03]} Ra3 {[%emt 0:00:04]} 75. Kf8 {[%emt 0:00:08]} Ra1 {[%emt 0:00:02]} 76. Ke7 {[%emt 0:00:01]} Re1+ {[%emt 0:00:01]} 77. Kd6 {[%emt 0:00:01]} Rd1+ {[%emt 0:00:00]} 78. Kc5 {[%emt 0:00:01]} Rc1+ {[%emt 0:00:01]} 79. Kb5 {[%emt 0:00:01]} Rb1+ {[%emt 0:00:01]} 80. Kc4 {[%emt 0:00:02]} Rc1+ {[%emt 0:00:01]} 81. Kd3 {[%emt 0:00:01]} Rd1+ {[%emt 0:00:02]} 82. Ke2 {[%emt 0:00:02]} Ra1 {[%emt 0:00:01]} 83. Kf3 {[%emt 0:00:04]} Ra3+ {[%emt 0:00:01]} 84. Kg2 {[%emt 0:00:01]} Ra2+ {[%emt 0:00:00]} 85. Kh3 {[%emt 0:00:01]} Ra3 {[%emt 0:00:01]} 86. Kh4 {[%emt 0:00:02]} Ra1 {[%emt 0:00:00]} 87. g4 {[%emt 0:00:03]} fxg4 {[%emt 0:00:06]} 88. Kxg4 {[%emt 0:00:01]} Ra4 {[%emt 0:00:02]} 89. Kf3 {[%emt 0:00:03]} Ra3+ {[%emt 0:00:00]} 90. Ke4 Ra4+ 91. Ke5 {[%emt 0:00:04]} Ra5+ {[%emt 0:00:01]} 92. Ke6 {[%emt 0:00:01]} Ra6+ {[%emt 0:00:03]} 93. Ke7 {[%emt 0:00:02]} Ra1 {[%emt 0:00:02]} 94. f5+ {[%emt 0:00:02]} Kh7 {[%emt 0:00:12]} 95. Kf7 {[%emt 0:00:07]} Ra5 {[%emt 0:00:02]} 96. f6 {[%emt 0:00:04]} gxf6 {[%emt 0:00:05]} 97. Kxf6 {[%emt 0:00:00]} Ra6+ {[%emt 0:00:01]} 98. Ke5 {[%emt 0:00:02]} Ra5+ {[%emt 0:00:01]} 99. Kd6 {[%emt 0:00:01]} Ra6+ {[%emt 0:00:01]} 100. Kc5 {[%emt 0:00:01]} Ra5+ {[%emt 0:00:01]} 101. Kb6 {[%emt 0:00:01]} Ra1 {[%emt 0:00:01]} 102. Rd8 {[%emt 0:00:01]} Rb1+ {[%emt 0:00:03]} 103. Kc5 {[%emt 0:00:01]} Rc1+ {[%emt 0:00:03]} 104. Kb4 {[%emt 0:00:01]} 1-0

[Event "RUS-ch Blitz Women 2018"]
[Site "Sochi"]
[Date "2018.10.07"]
[Round "20"]
[White "Vasilevich, Tatjana"]
[Black "Styazhkina, Anna"]
[Result "1-0"]
[ECO "D12"]
[WhiteElo "2360"]
[BlackElo "2128"]
[Annotator "NA"]
[PlyCount "99"]
[EventDate "2018.10.07"]
[EventType "swiss"]
[EventCountry "RUS"]
[SourceTitle "playchess.com"]
[Source "ChessBase"]
[SourceQuality "1"]
[TimeControl "180+2"]

1. d4 {[%emt 0:00:00]} d5 2. c4 c6 {[%emt 0:00:00]} 3. Nf3 {[%emt 0:00:00]} Nf6 {[%emt 0:00:02]} 4. e3 {[%emt 0:00:00]} Bf5 {[%emt 0:00:10]} 5. Nc3 {[%emt 0:00:02]} e6 {[%emt 0:00:01]} 6. Nh4 {[%emt 0:00:00]} Be4 {[%emt 0:00:01]} 7. f3 {[%emt 0:00:06]} Bg6 {[%emt 0:00:01]} 8. Nxg6 {[%emt 0:00:01]} hxg6 {[%emt 0:00:02]} 9. Qb3 {[%emt 0:00:12]} Qb6 {[%emt 0:00:16]} 10. Bd2 {[%emt 0:00:13]} Nbd7 {[%emt 0:00:03]} 11. Qxb6 {[%emt 0:00:14]} axb6 {[%emt 0:00:05]} 12. Kf2 {[%emt 0:00:09]} Bd6 {[%emt 0:00:09]} 13. g3 {[%emt 0:00:02]} g5 {[%emt 0:00:04]} 14. Bd3 {[%emt 0:00:11]} dxc4 {[%emt 0:00:45]} 15. Bxc4 {[%emt 0:00:02]} b5 {[%emt 0:00:00]} 16. Bd3 {[%emt 0:00:02]} e5 {[%emt 0:00:05]} 17. Kg2 {[%emt 0:00:31]} g4 {[%emt 0:00:51]} 18. Rhf1 {[%emt 0:00:33]} gxf3+ {[%emt 0:00:12]} 19. Rxf3 {[%emt 0:00:01]} exd4 {[%emt 0:00:01]} 20. exd4 {[%emt 0:00:01]} O-O {[%emt 0:00:14]} 21. Bg5 {[%emt 0:00:16]} b4 {[%emt 0:00:22]} 22. Ne4 {[%emt 0:00:06]} Nxe4 {[%emt 0:00:01]} 23. Bxe4 {[%emt 0:00:01]} Rfe8 {[%emt 0:00:08]} 24. Bf5 {[%emt 0:00:04]} Nb6 {[%emt 0:00:03]} 25. Rf2 {[%emt 0:00:12]} Nd5 {[%emt 0:00:03]} 26. Bd3 {[%emt 0:00:18]} f6 {[%emt 0:00:07]} 27. Bd2 {[%emt 0:00:02]} Red8 {[%emt 0:00:03]} 28. Bc4 {[%emt 0:00:01]} Bc7 {[%emt 0:00:04]} 29. Bxb4 {[%emt 0:00:03]} Bb6 {[%emt 0:00:01]} 30. Bc5 {[%emt 0:00:03]} Bxc5 {[%emt 0:00:02]} 31. dxc5 {[%emt 0:00:00]} Ra5 {[%emt 0:00:02]} 32. b4 {[%emt 0:00:03]} Ra4 {[%emt 0:00:01]} 33. a3 {[%emt 0:00:02]} Kf8 {[%emt 0:00:01]} 34. Bxd5 {[%emt 0:00:07]} Rxd5 {[%emt 0:00:01]} 35. Rf3 {[%emt 0:00:09]} Rd2+ {[%emt 0:00:01]} 36. Kh3 {[%emt 0:00:01]} Rb2 {[%emt 0:00:02]} 37. Rd3 {[%emt 0:00:02]} Rbxb4 {[%emt 0:00:03]} 38. axb4 {[%emt 0:00:03]} Rxa1 {[%emt 0:00:01]} 39. Rd8+ {[%emt 0:00:05]} Ke7 {[%emt 0:00:01]} 40. Rc8 {[%emt 0:00:06]} Ra7 {[%emt 0:00:06]} 41. Rc7+ {[%emt 0:00:01]} Kf8 {[%emt 0:00:01]} 42. Kg4 {[%emt 0:00:02]} Ra2 {[%emt 0:00:02]} 43. h4 {[%emt 0:00:03]} Ra7 {[%emt 0:00:03]} 44. Kf5 {[%emt 0:00:01]} Ra8 {[%emt 0:00:03]} 45. Kg6 {[%emt 0:00:02]} Re8 {[%emt 0:00:02]} 46. Rf7+ {[%emt 0:00:03]} Kg8 {[%emt 0:00:01]} 47. Rxg7+ {[%emt 0:00:01]} Kh8 {[%emt 0:00:01]} 48. Rh7+ {[%emt 0:00:01]} Kg8 {[%emt 0:00:00]} 49. Rxb7 {[%emt 0:00:02]} Re3 {[%emt 0:00:02]} 50. Rb8+ {[%emt 0:00:01]} 1-0

[Event "RUS-ch Blitz Women 2018"]
[Site "Sochi"]
[Date "2018.10.07"]
[Round "20"]
[White "Charochkina, Daria"]
[Black "Guseva, Marina"]
[Result "1/2-1/2"]
[ECO "D52"]
[WhiteElo "2344"]
[BlackElo "2292"]
[Annotator "NA"]
[PlyCount "115"]
[EventDate "2018.10.07"]
[EventType "swiss"]
[EventCountry "RUS"]
[SourceTitle "playchess.com"]
[Source "ChessBase"]
[SourceQuality "1"]
[TimeControl "180+2"]

1. d4 {[%emt 0:00:00]} d5 {[%emt 0:00:00]} 2. c4 {[%emt 0:00:00]} c6 {[%emt 0:00:00]} 3. Nc3 {[%emt 0:00:00]} Nf6 {[%emt 0:00:00]} 4. Nf3 {[%emt 0:00:01]} e6 {[%emt 0:00:01]} 5. Bg5 {[%emt 0:00:01]} Nbd7 {[%emt 0:00:01]} 6. e3 {[%emt 0:00:01]} Qa5 {[%emt 0:00:02]} 7. Nd2 {[%emt 0:00:01]} Bb4 {[%emt 0:00:01]} 8. Qc2 {[%emt 0:00:01]} O-O {[%emt 0:00:07]} 9. Be2 {[%emt 0:00:02]} c5 {[%emt 0:00:03]} 10. Bf4 {[%emt 0:00:01]} cxd4 {[%emt 0:00:06]} 11. exd4 {[%emt 0:00:01]} Re8 {[%emt 0:00:02]} 12. O-O {[%emt 0:00:11]} Bxc3 {[%emt 0:00:08]} 13. bxc3 {[%emt 0:00:02]} e5 {[%emt 0:00:03]} 14. Be3 {[%emt 0:00:01]} Qc7 {[%emt 0:00:07]} 15. c5 {[%emt 0:00:27]} b6 {[%emt 0:00:02]} 16. Nb3 {[%emt 0:00:30]} bxc5 {[%emt 0:00:06]} 17. dxc5 {[%emt 0:00:02]} a5 {[%emt 0:00:10]} 18. a4 {[%emt 0:00:04]} Ba6 {[%emt 0:00:05]} 19. Bb5 {[%emt 0:00:06]} Reb8 {[%emt 0:00:08]} 20. Qe2 {[%emt 0:00:13]} Bb7 {[%emt 0:00:04]} 21. f3 {[%emt 0:00:14]} Bc6 {[%emt 0:00:03]} 22. Rab1 {[%emt 0:00:11]} Bxb5 {[%emt 0:00:18]} 23. axb5 {[%emt 0:00:01]} a4 {[%emt 0:00:01]} 24. Nd2 {[%emt 0:00:29]} Nxc5 {[%emt 0:00:03]} 25. c4 {[%emt 0:00:05]} d4 {[%emt 0:00:07]} 26. Bg5 {[%emt 0:00:01]} Nfd7 {[%emt 0:00:02]} 27. f4 {[%emt 0:00:01]} f6 {[%emt 0:00:00]} 28. Bh4 {[%emt 0:00:11]} a3 {[%emt 0:00:13]} 29. Qg4 {[%emt 0:00:33]} e4 {[%emt 0:00:10]} 30. Nxe4 {[%emt 0:00:06]} Nxe4 {[%emt 0:00:08]} 31. Qe6+ {[%emt 0:00:00]} Kh8 {[%emt 0:00:00]} 32. Qxe4 {[%emt 0:00:01]} Qd6 {[%emt 0:00:03]} 33. Bf2 {[%emt 0:00:09]} a2 {[%emt 0:00:03]} 34. Rbd1 {[%emt 0:00:04]} Nc5 {[%emt 0:00:03]} 35. Qxd4 {[%emt 0:00:01]} Qxd4 {[%emt 0:00:03]} 36. Bxd4 {[%emt 0:00:01]} Nb3 {[%emt 0:00:02]} 37. Ba1 {[%emt 0:00:02]} Ra4 {[%emt 0:00:02]} 38. Rd3 {[%emt 0:00:11]} Nxa1 {[%emt 0:00:08]} 39. Rxa1 {[%emt 0:00:00]} Rxc4 {[%emt 0:00:01]} 40. Rxa2 {[%emt 0:00:02]} Rb4 {[%emt 0:00:01]} 41. Rad2 {[%emt 0:00:02]} h6 {[%emt 0:00:07]} 42. Rd8+ {[%emt 0:00:01]} Rxd8 {[%emt 0:00:01]} 43. Rxd8+ {[%emt 0:00:01]} Kh7 {[%emt 0:00:00]} 44. Rd5 {[%emt 0:00:07]} Rxf4 {[%emt 0:00:03]} 45. g3 {[%emt 0:00:04]} Rb4 {[%emt 0:00:01]} 46. Kg2 {[%emt 0:00:01]} Kg6 {[%emt 0:00:01]} 47. h4 {[%emt 0:00:01]} h5 {[%emt 0:00:08]} 48. Kf3 {[%emt 0:00:01]} Kh6 {[%emt 0:00:02]} 49. Ke3 {[%emt 0:00:01]} g5 {[%emt 0:00:03]} 50. hxg5+ {[%emt 0:00:02]} fxg5 {[%emt 0:00:01]} 51. Rd6+ {[%emt 0:00:01]} Kg7 {[%emt 0:00:01]} 52. b6 {[%emt 0:00:00]} h4 {[%emt 0:00:03]} 53. gxh4 {[%emt 0:00:04]} gxh4 {[%emt 0:00:01]} 54. Kf3 {[%emt 0:00:07]} Kf7 {[%emt 0:00:03]} 55. Rh6 {[%emt 0:00:01]} Ke7 {[%emt 0:00:03]} 56. b7 {[%emt 0:00:04]} Kd7 {[%emt 0:00:01]} 57. Rh7+ {[%emt 0:00:01]} Kc6 {[%emt 0:00:01]} 58. Rxh4 {[%emt 0:00:04]} 1/2-1/2